[Event "*** Titled Tuesday Blitz"]
[Site "Chess.com"]
[Date "2020.05.05"]
[Round "6"]
[White "plumalka"]
[Black "korkmaz16"]
[Result "0-1"]
[WhiteElo "2441"]
[BlackElo "2310"]
[TimeControl "180+1"]
[EndTime "11:07:44 PDT"]
[Termination "korkmaz16 won by resignation"]

1. e4 {[%clk 0:03:00.9]} 1... d5 {[%clk 0:02:58.2]} 2. exd5 {[%clk 0:03:00.9]}
2... Nf6 {[%clk 0:02:56.8]} 3. Bb5+ {[%clk 0:03:00.1]} 3... Bd7 {[%clk
0:02:56.4]} 4. Bc4 {[%clk 0:02:55.2]} 4... Bg4 {[%clk 0:02:56.1]} 5. f3 {[%clk
0:02:52.3]} 5... Bc8 {[%clk 0:02:53.9]} 6. Nc3 {[%clk 0:02:50.3]} 6... Nbd7
{[%clk 0:02:51.4]} 7. Nge2 {[%clk 0:02:43.2]} 7... Nb6 {[%clk 0:02:50.2]} 8.
Bb5+ {[%clk 0:02:42.6]} 8... Bd7 {[%clk 0:02:49.7]} 9. Bxd7+ {[%clk 0:02:41.3]}
9... Qxd7 {[%clk 0:02:50]} 10. O-O {[%clk 0:02:40.9]} 10... Nfxd5 {[%clk
0:02:49.5]} 11. Nxd5 {[%clk 0:02:39.7]} 11... Nxd5 {[%clk 0:02:49.2]} 12. c4
{[%clk 0:02:39.6]} 12... Nf6 {[%clk 0:02:42.6]} 13. d4 {[%clk 0:02:39]} 13... e6
{[%clk 0:02:42.7]} 14. Be3 {[%clk 0:02:38]} 14... Be7 {[%clk 0:02:35.7]} 15. Qb3
{[%clk 0:02:34.3]} 15... c6 {[%clk 0:02:35.1]} 16. Rad1 {[%clk 0:02:32.9]} 16...
O-O {[%clk 0:02:34.4]} 17. Ng3 {[%clk 0:02:32.2]} 17... Rfd8 {[%clk 0:02:25.6]}
18. Qc2 {[%clk 0:02:26.4]} 18... Qc7 {[%clk 0:02:21.4]} 19. Ne4 {[%clk
0:02:23.5]} 19... e5 {[%clk 0:02:08.9]} 20. Qf2 {[%clk 0:01:56.9]} 20... exd4
{[%clk 0:01:44]} 21. Bxd4 {[%clk 0:01:57.8]} 21... Nxe4 {[%clk 0:01:42.1]} 22.
fxe4 {[%clk 0:01:58.7]} 22... Bf8 {[%clk 0:01:27.2]} 23. c5 {[%clk 0:01:58.3]}
23... Rd7 {[%clk 0:01:22.8]} 24. Rde1 {[%clk 0:01:50.1]} 24... Qa5 {[%clk
0:01:16]} 25. Kh1 {[%clk 0:01:24.9]} 25... Qxa2 {[%clk 0:01:08.4]} 26. Bc3
{[%clk 0:01:20.9]} 26... Qe6 {[%clk 0:01:04.1]} 27. b4 {[%clk 0:01:12.1]} 27...
Rad8 {[%clk 0:00:53.9]} 28. Re3 {[%clk 0:01:08.7]} 28... Rd3 {[%clk 0:00:51.8]}
29. Rf3 {[%clk 0:01:04.1]} 29... Rxf3 {[%clk 0:00:50.7]} 30. Qxf3 {[%clk
0:01:05]} 30... Qc4 {[%clk 0:00:47.2]} 31. h3 {[%clk 0:00:58.4]} 31... Rd3
{[%clk 0:00:45.6]} 32. Qf2 {[%clk 0:00:37.6]} 32... Rxc3 {[%clk 0:00:29.4]} 33.
e5 {[%clk 0:00:37.8]} 33... Rc1 {[%clk 0:00:26.5]} 34. Re1 {[%clk 0:00:35.2]}
34... Rxe1+ {[%clk 0:00:26]} 35. Qxe1 {[%clk 0:00:36.1]} 35... Qe6 {[%clk
0:00:26.2]} 36. Qe4 {[%clk 0:00:35.8]} 36... f6 {[%clk 0:00:25.9]} 37. Qd4
{[%clk 0:00:29.9]} 37... fxe5 {[%clk 0:00:25.9]} 38. Qd8 {[%clk 0:00:29.1]}
38... e4 {[%clk 0:00:26.1]} 39. Kg1 {[%clk 0:00:29]} 39... e3 {[%clk 0:00:26.2]}
40. Qd1 {[%clk 0:00:24.9]} 40... e2 {[%clk 0:00:25.8]} 41. Qe1 {[%clk
0:00:25.3]} 41... Qe3+ {[%clk 0:00:25.6]} 42. Kh2 {[%clk 0:00:24]} 42... a5
{[%clk 0:00:25.8]} 43. bxa5 {[%clk 0:00:23.6]} 43... Bxc5 {[%clk 0:00:25.7]} 44.
Qh4 {[%clk 0:00:18.6]} 44... Bd6+ {[%clk 0:00:24.8]} 45. g3 {[%clk 0:00:18]}
45... Qf2+ {[%clk 0:00:24.3]} 0-1

[Event "*** Titled Tuesday Blitz"]
[Site "Chess.com"]
[Date "2020.05.05"]
[Round "6"]
[White "bazar-wokzal"]
[Black "Chepaschess"]
[Result "0-1"]
[WhiteElo "2537"]
[BlackElo "2737"]
[TimeControl "180+1"]
[EndTime "11:07:46 PDT"]
[Termination "Chepaschess won by resignation"]

1. e4 {[%clk 0:03:00.9]} 1... c5 {[%clk 0:02:50.9]} 2. c3 {[%clk 0:03:00.6]}
2... d5 {[%clk 0:02:47]} 3. exd5 {[%clk 0:03:00.5]} 3... Qxd5 {[%clk 0:02:47.9]}
4. d4 {[%clk 0:03:00.8]} 4... Nf6 {[%clk 0:02:46.4]} 5. Nf3 {[%clk 0:03:00.9]}
5... e6 {[%clk 0:02:47.1]} 6. a3 {[%clk 0:02:59.5]} 6... Nc6 {[%clk 0:02:41.7]}
7. Be3 {[%clk 0:02:59.4]} 7... cxd4 {[%clk 0:02:31.2]} 8. cxd4 {[%clk
0:02:59.1]} 8... Be7 {[%clk 0:02:31.8]} 9. Nc3 {[%clk 0:02:58.7]} 9... Qd6
{[%clk 0:02:31.8]} 10. Bd3 {[%clk 0:02:58.6]} 10... O-O {[%clk 0:02:32.4]} 11.
Qc2 {[%clk 0:02:58.8]} 11... g6 {[%clk 0:02:18.3]} 12. Rc1 {[%clk 0:02:55.2]}
12... Nd5 {[%clk 0:02:18]} 13. Ne4 {[%clk 0:02:45.2]} 13... Nxe3 {[%clk
0:02:15.5]} 14. fxe3 {[%clk 0:02:45.2]} 14... Qd8 {[%clk 0:02:08.1]} 15. O-O
{[%clk 0:02:44.9]} 15... Bd7 {[%clk 0:02:01]} 16. Qb3 {[%clk 0:02:36.2]} 16...
Qb6 {[%clk 0:01:59.3]} 17. Qxb6 {[%clk 0:02:30.9]} 17... axb6 {[%clk 0:02:00.2]}
18. Rf2 {[%clk 0:02:29.8]} 18... f5 {[%clk 0:01:54.5]} 19. Nc3 {[%clk
0:02:28.3]} 19... Bf6 {[%clk 0:01:51.7]} 20. Bc4 {[%clk 0:02:22.5]} 20... Kg7
{[%clk 0:01:45.8]} 21. Rd1 {[%clk 0:02:14.3]} 21... Na5 {[%clk 0:01:36.9]} 22.
Ba2 {[%clk 0:02:12.7]} 22... Rfd8 {[%clk 0:01:33.7]} 23. e4 {[%clk 0:02:12]}
23... Rac8 {[%clk 0:01:25.9]} 24. exf5 {[%clk 0:02:11.2]} 24... exf5 {[%clk
0:01:24.7]} 25. Nd5 {[%clk 0:01:47.1]} 25... b5 {[%clk 0:01:17.5]} 26. Nxf6
{[%clk 0:01:39.9]} 26... Kxf6 {[%clk 0:01:16.8]} 27. Ne5 {[%clk 0:01:39.6]}
27... Be6 {[%clk 0:01:11.9]} 28. Bxe6 {[%clk 0:01:36.9]} 28... Kxe6 {[%clk
0:01:12.8]} 29. Re2 {[%clk 0:01:31.8]} 29... Kd5 {[%clk 0:01:08.9]} 30. Nd3
{[%clk 0:01:25.6]} 30... Re8 {[%clk 0:01:05.9]} 31. Nf4+ {[%clk 0:01:17.7]}
31... Kd6 {[%clk 0:01:05.9]} 32. Rde1 {[%clk 0:01:14.2]} 32... Rxe2 {[%clk
0:01:02.6]} 33. Rxe2 {[%clk 0:01:14.4]} 33... g5 {[%clk 0:01:01.4]} 34. Nd3
{[%clk 0:01:06.7]} 34... Rc4 {[%clk 0:01:00.8]} 35. Re5 {[%clk 0:00:54.6]} 35...
Rxd4 {[%clk 0:00:57.1]} 36. Rxb5 {[%clk 0:00:54]} 36... Nc4 {[%clk 0:00:52.7]}
37. Nb4 {[%clk 0:00:45]} 37... Rd1+ {[%clk 0:00:45.4]} 38. Kf2 {[%clk 0:00:44]}
38... Rd2+ {[%clk 0:00:46.1]} 39. Kf3 {[%clk 0:00:40.1]} 39... Ne5+ {[%clk
0:00:42.8]} 40. Ke3 {[%clk 0:00:32.9]} 40... Nc4+ {[%clk 0:00:42.6]} 41. Kf3
{[%clk 0:00:31.7]} 41... Ne5+ {[%clk 0:00:43.2]} 42. Ke3 {[%clk 0:00:31.7]}
42... Rxg2 {[%clk 0:00:43.9]} 43. Rb6+ {[%clk 0:00:20.5]} 43... Kc5 {[%clk
0:00:43.8]} 44. Rxb7 {[%clk 0:00:14.5]} 44... f4+ {[%clk 0:00:43.9]} 45. Ke4
{[%clk 0:00:13.8]} 45... Re2+ {[%clk 0:00:44.6]} 46. Kf5 {[%clk 0:00:13.3]}
46... f3 {[%clk 0:00:45.3]} 47. Kxg5 {[%clk 0:00:13]} 47... f2 {[%clk
0:00:43.9]} 48. Rc7+ {[%clk 0:00:09.7]} 48... Kd6 {[%clk 0:00:44.1]} 49. Rc1
{[%clk 0:00:08.4]} 49... Re1 {[%clk 0:00:44.4]} 0-1

[Event "*** Titled Tuesday Blitz"]
[Site "Chess.com"]
[Date "2020.05.05"]
[Round "6"]
[White "FROGGY64"]
[Black "AlanZhang"]
[Result "1-0"]
[WhiteElo "2435"]
[BlackElo "2171"]
[TimeControl "180+1"]
[EndTime "11:07:46 PDT"]
[Termination "FROGGY64 won on time"]

1. d4 {[%clk 0:03:00.9]} 1... Nf6 {[%clk 0:02:59.3]} 2. Bg5 {[%clk 0:03:00]}
2... d5 {[%clk 0:02:56.5]} 3. e3 {[%clk 0:02:59.8]} 3... e6 {[%clk 0:02:56.4]}
4. Bd3 {[%clk 0:02:59.3]} 4... Be7 {[%clk 0:02:56.4]} 5. f4 {[%clk 0:02:59]}
5... Nbd7 {[%clk 0:02:56.8]} 6. Nf3 {[%clk 0:02:59.2]} 6... b6 {[%clk
0:02:56.9]} 7. O-O {[%clk 0:02:58.8]} 7... O-O {[%clk 0:02:56.3]} 8. Nbd2 {[%clk
0:02:55.5]} 8... Bb7 {[%clk 0:02:56.3]} 9. Ne5 {[%clk 0:02:55.4]} 9... c5 {[%clk
0:02:55.4]} 10. c3 {[%clk 0:02:54.6]} 10... c4 {[%clk 0:02:50.7]} 11. Bc2 {[%clk
0:02:54.4]} 11... b5 {[%clk 0:02:50.5]} 12. Rf3 {[%clk 0:02:51.2]} 12... Ne4
{[%clk 0:02:40.7]} 13. Bxe7 {[%clk 0:02:40.3]} 13... Qxe7 {[%clk 0:02:41.6]} 14.
Nxe4 {[%clk 0:02:33.2]} 14... dxe4 {[%clk 0:02:40.6]} 15. Rg3 {[%clk 0:02:30.6]}
15... f5 {[%clk 0:02:38]} 16. Rh3 {[%clk 0:02:17.7]} 16... Nxe5 {[%clk
0:02:16.9]} 17. fxe5 {[%clk 0:02:17.4]} 17... a5 {[%clk 0:02:06.1]} 18. Qe2
{[%clk 0:02:16.5]} 18... Bd5 {[%clk 0:02:02.9]} 19. Rf1 {[%clk 0:02:12.9]} 19...
b4 {[%clk 0:01:56.8]} 20. g4 {[%clk 0:02:01.6]} 20... Qg5 {[%clk 0:01:49.2]} 21.
Rg3 {[%clk 0:02:00.5]} 21... f4 {[%clk 0:01:45]} 22. exf4 {[%clk 0:01:55.8]}
22... Rxf4 {[%clk 0:01:45.9]} 23. Rxf4 {[%clk 0:01:50.6]} 23... Qxf4 {[%clk
0:01:46.8]} 24. Re3 {[%clk 0:01:46.7]} 24... Rf8 {[%clk 0:00:58.6]} 25. Bxe4
{[%clk 0:01:43.9]} 25... Bxe4 {[%clk 0:00:57.6]} 26. Rxe4 {[%clk 0:01:44]} 26...
Qc1+ {[%clk 0:00:58]} 27. Kg2 {[%clk 0:01:43.8]} 27... bxc3 {[%clk 0:00:57.4]}
28. bxc3 {[%clk 0:01:37]} 28... Qxc3 {[%clk 0:00:58.3]} 29. Qd1 {[%clk
0:01:11.1]} 29... Rb8 {[%clk 0:00:30.5]} 30. d5 {[%clk 0:00:44.8]} 30... Rb2+
{[%clk 0:00:28.4]} 31. Re2 {[%clk 0:00:24.1]} 31... Rxe2+ {[%clk 0:00:21.1]} 32.
Qxe2 {[%clk 0:00:23.7]} 32... exd5 {[%clk 0:00:20.9]} 33. e6 {[%clk 0:00:23.4]}
33... Kf8 {[%clk 0:00:17.6]} 34. Qf2+ {[%clk 0:00:22.8]} 34... Qf6 {[%clk
0:00:17.3]} 35. Qc5+ {[%clk 0:00:22]} 35... Qe7 {[%clk 0:00:15.9]} 36. Qc8+
{[%clk 0:00:22]} 36... Qe8 {[%clk 0:00:15.1]} 37. Qc5+ {[%clk 0:00:22.4]} 37...
Kg8 {[%clk 0:00:14.6]} 38. Qxd5 {[%clk 0:00:22.8]} 38... c3 {[%clk 0:00:10.9]}
39. e7+ {[%clk 0:00:22]} 39... Kh8 {[%clk 0:00:10.7]} 40. Qd8 {[%clk 0:00:22.4]}
1-0

[Event "*** Titled Tuesday Blitz"]
[Site "Chess.com"]
[Date "2020.05.05"]
[Round "6"]
[White "Nellichka"]
[Black "annamaja"]
[Result "0-1"]
[WhiteElo "2084"]
[BlackElo "2305"]
[TimeControl "180+1"]
[EndTime "11:07:47 PDT"]
[Termination "annamaja won by resignation"]

1. d4 {[%clk 0:03:00.9]} 1... Nf6 {[%clk 0:02:59.1]} 2. c4 {[%clk 0:02:59.6]}
2... e6 {[%clk 0:02:59.4]} 3. Nc3 {[%clk 0:02:58.1]} 3... Bb4 {[%clk 0:02:58.4]}
4. e3 {[%clk 0:02:57.1]} 4... O-O {[%clk 0:02:58.2]} 5. Ne2 {[%clk 0:02:55.8]}
5... d5 {[%clk 0:02:55.4]} 6. a3 {[%clk 0:02:54.1]} 6... Be7 {[%clk 0:02:55.3]}
7. b4 {[%clk 0:02:47.9]} 7... dxc4 {[%clk 0:02:52.4]} 8. Ng3 {[%clk 0:02:45]}
8... a5 {[%clk 0:02:52.1]} 9. bxa5 {[%clk 0:02:39.7]} 9... Rxa5 {[%clk
0:02:51.3]} 10. Bxc4 {[%clk 0:02:39.3]} 10... c6 {[%clk 0:02:44.1]} 11. O-O
{[%clk 0:02:36.3]} 11... b5 {[%clk 0:02:44.3]} 12. Bb3 {[%clk 0:02:29.6]} 12...
b4 {[%clk 0:02:43.6]} 13. Na4 {[%clk 0:02:20.3]} 13... Ba6 {[%clk 0:02:37.1]}
14. Re1 {[%clk 0:02:16.4]} 14... bxa3 {[%clk 0:02:05.2]} 15. Bd2 {[%clk
0:02:05.7]} 15... Rb5 {[%clk 0:01:56.7]} 16. Bc3 {[%clk 0:01:54.6]} 16... Nd5
{[%clk 0:01:44]} 17. e4 {[%clk 0:01:51.6]} 17... Nxc3 {[%clk 0:01:38.5]} 18.
Nxc3 {[%clk 0:01:50.7]} 18... Rb4 {[%clk 0:01:36.4]} 19. d5 {[%clk 0:01:44.3]}
19... cxd5 {[%clk 0:01:32.7]} 20. exd5 {[%clk 0:01:43.7]} 20... Bf6 {[%clk
0:01:31.8]} 21. Nge4 {[%clk 0:01:40.4]} 21... Rxe4 {[%clk 0:01:18]} 22. Nxe4
{[%clk 0:01:38.1]} 22... Bxa1 {[%clk 0:01:17.8]} 23. Qxa1 {[%clk 0:01:34.8]}
23... exd5 {[%clk 0:01:17.8]} 24. Rd1 {[%clk 0:01:22]} 24... Qb6 {[%clk
0:00:44.5]} 25. Bxd5 {[%clk 0:01:13]} 25... Qb2 {[%clk 0:00:35.9]} 26. Qxb2
{[%clk 0:01:12.4]} 26... axb2 {[%clk 0:00:36.8]} 27. Nd6 {[%clk 0:01:00.5]}
27... Bd3 {[%clk 0:00:29.7]} 28. Ba2 {[%clk 0:00:51.8]} 28... Bc2 {[%clk
0:00:29.9]} 29. Re1 {[%clk 0:00:49.5]} 29... Nc6 {[%clk 0:00:27.4]} 30. Nxf7
{[%clk 0:00:43.5]} 30... h6 {[%clk 0:00:08]} 31. Nxh6+ {[%clk 0:00:41.5]} 31...
Kh7 {[%clk 0:00:08.2]} 32. Ng4 {[%clk 0:00:40.6]} 32... Nb4 {[%clk 0:00:07.9]}
33. Bb1 {[%clk 0:00:39.6]} 33... Rc8 {[%clk 0:00:07.4]} 34. Ne3 {[%clk
0:00:17.3]} 34... Bxb1 {[%clk 0:00:07.6]} 35. Nd1 {[%clk 0:00:15.4]} 35... Rc1
{[%clk 0:00:07.5]} 36. Kf1 {[%clk 0:00:13.5]} 36... Bd3+ {[%clk 0:00:07.6]} 37.
Kg1 {[%clk 0:00:11.6]} 37... b1=Q {[%clk 0:00:07.8]} 0-1

[Event "*** Titled Tuesday Blitz"]
[Site "Chess.com"]
[Date "2020.05.05"]
[Round "6"]
[White "Herracek"]
[Black "K_A_S_T_O_R"]
[Result "0-1"]
[WhiteElo "2595"]
[BlackElo "2783"]
[TimeControl "180+1"]
[EndTime "11:07:48 PDT"]
[Termination "K_A_S_T_O_R won by resignation"]

1. c4 {[%clk 0:03:00.9]} 1... Nf6 {[%clk 0:02:58.3]} 2. Nc3 {[%clk 0:03:00.9]}
2... c5 {[%clk 0:02:57.5]} 3. g3 {[%clk 0:03:00.6]} 3... e6 {[%clk 0:02:57.5]}
4. Nf3 {[%clk 0:03:00.1]} 4... b6 {[%clk 0:02:57.3]} 5. Bg2 {[%clk 0:02:59.9]}
5... Bb7 {[%clk 0:02:57.9]} 6. O-O {[%clk 0:03:00.5]} 6... a6 {[%clk 0:02:57.5]}
7. b3 {[%clk 0:03:00.3]} 7... d6 {[%clk 0:02:55.7]} 8. d4 {[%clk 0:02:59.3]}
8... cxd4 {[%clk 0:02:54.5]} 9. Qxd4 {[%clk 0:03:00.2]} 9... Nbd7 {[%clk
0:02:54.4]} 10. Rd1 {[%clk 0:03:00]} 10... Be7 {[%clk 0:02:54.5]} 11. Ba3 {[%clk
0:02:59.6]} 11... Nc5 {[%clk 0:02:53.8]} 12. Rac1 {[%clk 0:02:56.7]} 12... O-O
{[%clk 0:02:53]} 13. Bb2 {[%clk 0:02:52.8]} 13... Qc7 {[%clk 0:02:52.9]} 14. Ng5
{[%clk 0:01:34]} 14... Bxg2 {[%clk 0:02:51.2]} 15. Kxg2 {[%clk 0:01:34.9]} 15...
Qb7+ {[%clk 0:02:49.7]} 16. f3 {[%clk 0:01:34.9]} 16... Rfd8 {[%clk 0:02:43.1]}
17. Rd2 {[%clk 0:01:17.7]} 17... Rac8 {[%clk 0:02:41.8]} 18. Nge4 {[%clk
0:01:16.1]} 18... b5 {[%clk 0:02:28.8]} 19. cxb5 {[%clk 0:01:14.2]} 19... axb5
{[%clk 0:02:21.5]} 20. Rcd1 {[%clk 0:01:11.3]} 20... d5 {[%clk 0:02:08.3]} 21.
Nxf6+ {[%clk 0:01:01.1]} 21... Bxf6 {[%clk 0:02:07.3]} 22. Qg4 {[%clk
0:01:01.6]} 22... d4 {[%clk 0:01:43.9]} 23. Nb1 {[%clk 0:00:48.8]} 23... e5
{[%clk 0:01:40.1]} 24. h4 {[%clk 0:00:44.6]} 24... g6 {[%clk 0:01:33.3]} 25. h5
{[%clk 0:00:44.5]} 25... Re8 {[%clk 0:01:28.1]} 26. hxg6 {[%clk 0:00:44.1]}
26... hxg6 {[%clk 0:01:27.5]} 27. Na3 {[%clk 0:00:41.8]} 27... Ra8 {[%clk
0:01:22.7]} 28. Rc1 {[%clk 0:00:37.2]} 28... Ne6 {[%clk 0:01:19.4]} 29. Rh1
{[%clk 0:00:29.9]} 29... Kg7 {[%clk 0:01:13.6]} 30. Rc2 {[%clk 0:00:20.9]} 30...
Rh8 {[%clk 0:01:11.2]} 31. Rxh8 {[%clk 0:00:20.2]} 31... Rxh8 {[%clk 0:01:09.6]}
32. Nb1 {[%clk 0:00:19.6]} 32... Be7 {[%clk 0:01:06]} 33. Qe4 {[%clk 0:00:16.9]}
33... Qxe4 {[%clk 0:01:04.7]} 34. fxe4 {[%clk 0:00:17.8]} 34... Ng5 {[%clk
0:01:03.4]} 35. Nd2 {[%clk 0:00:18]} 35... Kf6 {[%clk 0:00:47.2]} 36. a3 {[%clk
0:00:14.7]} 36... Ne6 {[%clk 0:00:45.3]} 37. b4 {[%clk 0:00:14.5]} 37... Bd6
{[%clk 0:00:42.1]} 38. Nf3 {[%clk 0:00:14.6]} 38... Ke7 {[%clk 0:00:42.3]} 39.
Rc6 {[%clk 0:00:14.7]} 39... Rb8 {[%clk 0:00:40.9]} 40. Ra6 {[%clk 0:00:14.4]}
40... Nc7 {[%clk 0:00:39.7]} 41. Ra7 {[%clk 0:00:14]} 41... Kd7 {[%clk
0:00:39.8]} 42. e3 {[%clk 0:00:13]} 42... d3 {[%clk 0:00:30]} 43. Kf1 {[%clk
0:00:10.6]} 43... f6 {[%clk 0:00:28.6]} 44. Ke1 {[%clk 0:00:10.5]} 44... Kc6
{[%clk 0:00:29.2]} 45. Kd2 {[%clk 0:00:11]} 45... Kb6 {[%clk 0:00:28.6]} 46. Ra5
{[%clk 0:00:11.6]} 46... Rd8 {[%clk 0:00:24.4]} 47. Kxd3 {[%clk 0:00:11.9]}
47... Bxb4+ {[%clk 0:00:24]} 0-1

[Event "*** Titled Tuesday Blitz"]
[Site "Chess.com"]
[Date "2020.05.05"]
[Round "6"]
[White "EddieMarsalla"]
[Black "ElGasanov"]
[Result "1-0"]
[WhiteElo "2528"]
[BlackElo "2708"]
[TimeControl "180+1"]
[EndTime "11:07:48 PDT"]
[Termination "EddieMarsalla won by resignation"]

1. d4 {[%clk 0:03:00.9]} 1... e6 {[%clk 0:02:58.5]} 2. Nf3 {[%clk 0:03:00.1]}
2... c5 {[%clk 0:02:57.9]} 3. c3 {[%clk 0:03:00]} 3... Nf6 {[%clk 0:02:55.2]} 4.
Bg5 {[%clk 0:02:59.9]} 4... Be7 {[%clk 0:02:50]} 5. e3 {[%clk 0:02:59.8]} 5...
Qb6 {[%clk 0:02:44.1]} 6. Qb3 {[%clk 0:02:58.7]} 6... d5 {[%clk 0:02:42.8]} 7.
Nbd2 {[%clk 0:02:58.6]} 7... Bd7 {[%clk 0:02:40.4]} 8. Ne5 {[%clk 0:02:57.9]}
8... Nc6 {[%clk 0:02:36.3]} 9. f4 {[%clk 0:02:57.8]} 9... h6 {[%clk 0:02:26]}
10. Bh4 {[%clk 0:02:57.6]} 10... g5 {[%clk 0:02:20]} 11. Bg3 {[%clk 0:02:55.8]}
11... gxf4 {[%clk 0:02:15]} 12. Bxf4 {[%clk 0:02:52.1]} 12... c4 {[%clk
0:02:01.9]} 13. Qc2 {[%clk 0:02:48.8]} 13... Nh5 {[%clk 0:02:00.4]} 14. Be2
{[%clk 0:02:47.5]} 14... Nxf4 {[%clk 0:01:57.6]} 15. exf4 {[%clk 0:02:48.4]}
15... Nxe5 {[%clk 0:01:45.9]} 16. fxe5 {[%clk 0:02:49.3]} 16... f5 {[%clk
0:01:39.2]} 17. exf6 {[%clk 0:02:38.9]} 17... Bxf6 {[%clk 0:01:39]} 18. O-O
{[%clk 0:02:39.6]} 18... O-O {[%clk 0:01:27.6]} 19. Rf3 {[%clk 0:02:15.7]} 19...
Bg7 {[%clk 0:01:27.5]} 20. Raf1 {[%clk 0:02:14.7]} 20... e5 {[%clk 0:01:25.6]}
21. Rxf8+ {[%clk 0:02:08.5]} 21... Rxf8 {[%clk 0:01:26.2]} 22. Rxf8+ {[%clk
0:01:57.8]} 22... Kxf8 {[%clk 0:01:26.8]} 23. Kf1 {[%clk 0:01:42.4]} 23... exd4
{[%clk 0:01:26.2]} 24. cxd4 {[%clk 0:01:42.6]} 24... Qxd4 {[%clk 0:01:23.4]} 25.
b3 {[%clk 0:01:42.9]} 25... Qf4+ {[%clk 0:01:19.9]} 26. Nf3 {[%clk 0:01:41.4]}
26... Bf5 {[%clk 0:01:19.7]} 27. Qd1 {[%clk 0:01:40.2]} 27... c3 {[%clk
0:01:15.5]} 28. Bd3 {[%clk 0:01:04]} 28... Bxd3+ {[%clk 0:01:04.3]} 29. Qxd3
{[%clk 0:01:04.9]} 29... Qe4 {[%clk 0:00:54.8]} 30. Qxe4 {[%clk 0:00:50.7]}
30... dxe4 {[%clk 0:00:55.7]} 31. Ne1 {[%clk 0:00:51.2]} 31... b5 {[%clk
0:00:48.8]} 32. Ke2 {[%clk 0:00:51.3]} 32... Bd4 {[%clk 0:00:49]} 33. Nc2 {[%clk
0:00:51.6]} 33... Bb6 {[%clk 0:00:45]} 34. b4 {[%clk 0:00:48.2]} 34... Kf7
{[%clk 0:00:42.6]} 35. Na3 {[%clk 0:00:46.8]} 35... a6 {[%clk 0:00:40]} 36. Kd1
{[%clk 0:00:46]} 36... e3 {[%clk 0:00:33.1]} 37. Nc2 {[%clk 0:00:31.6]} 37...
Ke6 {[%clk 0:00:32.3]} 38. Ke2 {[%clk 0:00:31.9]} 38... Kd5 {[%clk 0:00:31.4]}
39. Kd3 {[%clk 0:00:30.6]} 39... Ke5 {[%clk 0:00:23]} 40. Nxe3 {[%clk
0:00:26.3]} 40... Bxe3 {[%clk 0:00:18.3]} 41. Kxe3 {[%clk 0:00:27.2]} 41... h5
{[%clk 0:00:16.9]} 42. g3 {[%clk 0:00:22.8]} 42... Kf5 {[%clk 0:00:11.1]} 43. h3
{[%clk 0:00:22.6]} 43... Ke5 {[%clk 0:00:09.4]} 44. Kd3 {[%clk 0:00:22.4]} 1-0

[Event "*** Titled Tuesday Blitz"]
[Site "Chess.com"]
[Date "2020.05.05"]
[Round "6"]
[White "floplover"]
[Black "elisak43"]
[Result "1-0"]
[WhiteElo "2283"]
[BlackElo "2414"]
[TimeControl "180+1"]
[EndTime "11:07:48 PDT"]
[Termination "floplover won on time"]

1. d4 {[%clk 0:03:00.9]} 1... Nf6 {[%clk 0:03:00.9]} 2. c4 {[%clk 0:03:00.4]}
2... c5 {[%clk 0:03:01.8]} 3. d5 {[%clk 0:02:59.7]} 3... b5 {[%clk 0:03:01.5]}
4. cxb5 {[%clk 0:02:59.6]} 4... g6 {[%clk 0:03:01.8]} 5. Nc3 {[%clk 0:02:58.8]}
5... Bg7 {[%clk 0:03:02.2]} 6. e4 {[%clk 0:02:58.5]} 6... d6 {[%clk 0:03:02.1]}
7. Bd3 {[%clk 0:02:52.5]} 7... O-O {[%clk 0:03:02.3]} 8. Nf3 {[%clk 0:02:51.8]}
8... a6 {[%clk 0:03:02.4]} 9. bxa6 {[%clk 0:02:46.7]} 9... Bxa6 {[%clk
0:03:02.5]} 10. O-O {[%clk 0:02:43.8]} 10... Nbd7 {[%clk 0:03:01]} 11. a4 {[%clk
0:02:38.4]} 11... Ng4 {[%clk 0:02:57.3]} 12. Nb5 {[%clk 0:02:18.6]} 12... Nge5
{[%clk 0:02:46]} 13. Nxe5 {[%clk 0:02:15]} 13... Nxe5 {[%clk 0:02:46.9]} 14. Be2
{[%clk 0:02:15.5]} 14... Qb6 {[%clk 0:02:35.4]} 15. Be3 {[%clk 0:02:09.5]} 15...
Nd7 {[%clk 0:02:28.9]} 16. Rb1 {[%clk 0:02:06.6]} 16... Qa5 {[%clk 0:02:22.2]}
17. b3 {[%clk 0:02:03.3]} 17... Rfb8 {[%clk 0:02:14.2]} 18. h4 {[%clk
0:01:58.4]} 18... Nf6 {[%clk 0:01:59.4]} 19. Qc2 {[%clk 0:01:56.3]} 19... Ne8
{[%clk 0:01:54]} 20. Rfe1 {[%clk 0:01:33.6]} 20... Nc7 {[%clk 0:01:48.9]} 21. b4
{[%clk 0:01:33.8]} 21... cxb4 {[%clk 0:01:10.1]} 22. Qxc7 {[%clk 0:01:21.2]}
22... Qxa4 {[%clk 0:01:06.8]} 23. Nd4 {[%clk 0:01:05.4]} 23... Bxe2 {[%clk
0:00:26.1]} 24. Rxe2 {[%clk 0:01:04.5]} 24... b3 {[%clk 0:00:22]} 25. Nc6 {[%clk
0:00:48.4]} 25... Qxe4 {[%clk 0:00:21.3]} 26. Ree1 {[%clk 0:00:33.2]} 26... Re8
{[%clk 0:00:17.8]} 27. Rxb3 {[%clk 0:00:26.1]} 27... Qxd5 {[%clk 0:00:15.7]} 28.
Rb7 {[%clk 0:00:22.8]} 28... Bf6 {[%clk 0:00:12]} 29. Bg5 {[%clk 0:00:16.2]}
29... Rac8 {[%clk 0:00:07.9]} 30. Qd7 {[%clk 0:00:13.1]} 30... Qxc6 {[%clk
0:00:07.1]} 31. Qxc6 {[%clk 0:00:11.7]} 31... Rxc6 {[%clk 0:00:06.4]} 32. Bxf6
{[%clk 0:00:12.2]} 32... e6 {[%clk 0:00:04]} 33. Reb1 {[%clk 0:00:10.7]} 33...
Rcc8 {[%clk 0:00:03.7]} 34. Rd7 {[%clk 0:00:10.5]} 34... e5 {[%clk 0:00:02.6]}
35. Rbb7 {[%clk 0:00:09]} 35... Rf8 {[%clk 0:00:02.5]} 36. Be7 {[%clk
0:00:07.8]} 36... Rfe8 {[%clk 0:00:02]} 37. Bxd6 {[%clk 0:00:08]} 1-0